fUSD/lending_fUSD_20260130
["ID","MTS","AMOUNT","RATE_DAILY","PERIOD"]
[404024077,1769740245831,-168.0,0.00017936,2]
[404024078,1769740245840,-500.0,0.00017972,2]
[404024079,1769740245849,-500.0,0.00017973,2]
[404024080,1769740245858,-503.36695703,0.00017973,2]
[404024081,1769740245867,-500.0,0.00017973,2]
[404024082,1769740245876,-500.0,0.00017973,2]
[404024083,1769740245885,-500.0,0.00017973,2]
[404024084,1769740245894,-500.0,0.00017973,2]
[404024085,1769740245904,-500.0,0.00017973,2]
[404024086,1769740245914,-500.0,0.00017973,2]
[404024087,1769740245924,-279.60181321,0.00017973,2]
[404024088,1769740245934,-250.0,0.00017975,2]
[404024089,1769740245943,-195.0,0.00017975,2]
[404024090,1769740245952,-151.0,0.00017997,2]
[404024091,1769740245961,-168.0,0.00017999,2]
[404024092,1769740245971,-300.0,0.00017999,2]
[404024093,1769740245980,-294.46499987,0.00017999,2]
[404024094,1769740245989,-196.06065422,0.00017999,2]
[404024095,1769740245999,-426.92314491,0.00017999,2]
[404024097,1769740246011,-158.87204512,0.00017999,2]
[404024099,1769740246020,-380.81817959,0.00017999,2]
[404024100,1769740246029,-500.0,0.00017999,2]
[404024101,1769740246040,-390.01121333,0.00017999,2]
[404024102,1769740246050,-500.0,0.00017999,2]
[404024103,1769740246060,-500.0,0.00017999,2]
[404024104,1769740246070,-426.35651456,0.00017999,2]
[404024105,1769740246080,-4202.0,0.00018,2]
[404024106,1769740246090,-617083.33477946,0.00018,2]
[404024107,1769740246099,-377928.90862385,0.00018,2]
[404024108,1769740246112,-4551.0459564,0.00018,2]
[404024109,1769740246294,-1289.2809558,0.00018,2]
[404024113,1769740246835,-528.39518404,0.00018,2]
[404024115,1769740246847,-51509.99999998,0.00018,2]
[404024124,1769740283698,-199.9418,0.00016241,2]
[404024125,1769740283722,-300.0,0.0001634,2]
[404024126,1769740283744,-3479.0,0.00016341,2]
[404024127,1769740283766,-2444.0,0.00016341,2]
[404024128,1769740283787,-5933.0,0.00016341,2]
[404024129,1769740283809,-567.0,0.00016341,2]
[404024130,1769740283831,-1270.0,0.00016341,2]
[404024131,1769740283855,-567.82737954,0.00016373,2]
[404024132,1769740283875,-151.0,0.00016409,2]
[404024133,1769740283897,-151.0,0.00016621,2]
[404024134,1769740283920,-151.0,0.00016645,2]
[404024135,1769740283939,-159.0424929,0.00017419,2]
[404024136,1769740283962,-150.0,0.00017699,2]
[404024137,1769740283984,-163.91129435,0.00017754,2]
[404024138,1769740284005,-420.0,0.00017859,2]
[404024139,1769740284031,-250.0,0.00017974,2]
[404024140,1769740284052,-600.0,0.00017974,2]
[404024141,1769740284073,-200.0,0.00017974,2]
[404024142,1769740284095,-195.0,0.00017974,2]
[404024143,1769740284121,-23148.1617049,0.00017992,2]
[404024144,1769740284144,-151.0,0.00017997,2]
[404024145,1769740284166,-524329.28295772,0.00018,2]
[404024146,1769740284186,-160.18,0.00018,5]
[404024147,1769740284209,-1223651.76445755,0.00018,2]
[404024148,1769740284231,-123836.71069509,0.00018,2]
[404024149,1769740284253,-4811657.15390542,0.00018,2]
[404024150,1769740284273,-2037257.22783948,0.00018,2]
[404024151,1769740284294,-1238456.79547305,0.00018,2]
[404024152,1769740303306,-1204.0,0.00016341,2]
[404024153,1769740303327,-151.0,0.00016619,2]
[404024154,1769740303351,-2187.185,0.00017548,2]
[404024155,1769740303371,-181.239,0.00017548,2]
[404024156,1769740303392,-500.0,0.00017999,2]
[404024157,1769740303412,-502.84869294,0.00017999,2]
[404024158,1769740303434,-976443.77008583,0.00018,2]
[404024159,1769740303454,-416143.71603526,0.00018,2]
[404024160,1769740303476,-1108246.27851872,0.00018,2]
[404024161,1769740303496,-643163.84175628,0.00018,2]
[404024162,1769740303518,-1968148.18914268,0.00018,2]
[404024163,1769740303538,-375015.78098777,0.00018,2]
[404024164,1769740303558,-150.0,0.00018,2]
[404024165,1769740303577,-4475.27825776,0.00018,2]
[404024166,1769740303855,-150.0,0.00018,2]
[404024167,1769740303876,-17276.02337365,0.00018,2]
[404024168,1769740303896,-150.0,0.00018,2]
[404024169,1769740303916,-3253.32626475,0.00018,2]
[404024170,1769740303936,-151.69662774,0.00018,2]
[404024171,1769740303956,-447.58,0.00018,7]
[404024172,1769740303976,-1000.0,0.00018,2]
[404024173,1769740303996,-1000.0,0.00018,2]
[404024174,1769740304019,-1000.0,0.00018,2]
[404024175,1769740304038,-1000.0,0.00018,2]
[404024176,1769740304061,-1000.0,0.00018,2]
[404024177,1769740304080,-1000.0,0.00018,2]
[404024178,1769740304104,-1000.0,0.00018,2]
[404024179,1769740304125,-1000.0,0.00018,2]
[404024180,1769740304145,-1000.0,0.00018,2]
[404024181,1769740304164,-1000.0,0.00018,2]
[404024182,1769740304185,-1000.0,0.00018,2]
[404024183,1769740304204,-1000.0,0.00018,2]
[404024184,1769740304224,-1000.0,0.00018,2]
[404024185,1769740304244,-1000.0,0.00018,2]
[404024186,1769740304264,-366.65,0.00018,2]
[404024187,1769740304284,-151.0,0.00018,2]
[404024188,1769740304304,-151.0,0.00018,2]
[404024189,1769740304324,-151.0,0.00018,2]
[404024190,1769740304345,-151.0,0.00018,2]
[404024191,1769740304364,-151.0,0.00018,2]
[404024192,1769740304384,-199.384632,0.00018,2]
[404024193,1769740304404,-151.0,0.00018,2]
[404024194,1769740304424,-154.210641,0.00018,2]
[404024195,1769740304445,-2943001.50963428,0.00018,2]
[404024196,1769740304466,-151.0,0.00018,2]
[404024197,1769740304486,-151.0,0.00018,2]
[404024198,1769740304508,-151.0,0.00018,2]
[404024199,1769740304528,-151.0,0.00018,2]
[404024200,1769740304548,-151.0,0.00018,2]
[404024201,1769740304568,-151.0,0.00018,2]
[404024202,1769740304588,-190.250167,0.00018,2]
[404024203,1769740304608,-559497.2240414,0.00018,2]
[404024204,1769740304628,-221.511239,0.00018,2]
[404024205,1769740304650,-119896.37220182,0.00018,2]
[404024206,1769740304671,-842719.13370012,0.00018,2]
[404024210,1769740707532,167.65,0.00013156,2]
[404024214,1769740940907,-1422.8433878,0.00015645,2]
[404024215,1769740940927,-151.0,0.00015927,2]
[404024216,1769740940947,-151.0,0.00015931,2]
[404024217,1769740940967,-151.0,0.00015931,2]
[404024218,1769740940987,-160.9320103,0.00016145,2]
[404024219,1769740941006,-427.79450118,0.00016245,2]
[404024220,1769740941026,-500.0,0.00016331,2]
[404024221,1769740941046,-500.0,0.00016331,2]
[404024222,1769740941066,-500.0,0.00016331,2]
[404024223,1769740941086,-500.0,0.00016331,2]
[404024224,1769740941106,-500.0,0.00016331,2]
[404024225,1769740941126,-500.0,0.00016331,2]
[404024226,1769740941148,-500.0,0.00016331,2]
[404024227,1769740941171,-500.0,0.00016331,2]
[404024228,1769740941191,-500.0,0.00016331,2]
[404024229,1769740941211,-500.0,0.00016331,2]
[404024230,1769740941231,-522.46587888,0.00016331,2]
[404024231,1769740941251,-1200.0,0.0001634,2]
[404024232,1769740941271,-300.0,0.0001634,2]
[404024233,1769740941292,-300.0,0.0001634,2]
[404024234,1769740941312,-550.0,0.0001634,2]
[404024235,1769740941332,-2444.0,0.00016341,2]
[404024236,1769740941357,-567.0,0.00016341,2]
[404024237,1769740941379,-6575.0,0.00016341,2]
[404024238,1769740941400,-5933.0,0.00016341,2]
[404024239,1769740941422,-1204.0,0.00016341,2]
[404024240,1769740941442,-916.0,0.00016341,2]
[404024241,1769740941462,-1000.0,0.00016597,2]
[404024242,1769740941482,-279.36,0.00016624,2]
[404024243,1769740941501,-150.0,0.00016635,2]
[404024244,1769740941522,-1022.64,0.00016665,2]
[404024245,1769740941544,-981.61,0.0001684,2]
[404024246,1769740941567,-981.61,0.00016894,2]
[404024247,1769740941590,-981.61,0.00016948,2]
[404024248,1769740941611,-316.28794125,0.00016974,2]
[404024249,1769740941632,-322.6107,0.00016984,2]
[404024250,1769740941657,-174.61919141,0.00016984,2]
[404024251,1769740941678,-578.20924308,0.00016984,2]
[404024252,1769740941699,-500.0,0.00016984,2]
[404024253,1769740941719,-250.0,0.00016984,2]
[404024254,1769740941739,-500.0,0.00016984,2]
[404024255,1769740941759,-250.0,0.00016984,2]
[404024256,1769740941779,-500.0,0.00016984,2]
[404024257,1769740941799,-250.0,0.00016984,2]
[404024258,1769740941819,-500.0,0.00016984,2]
[404024259,1769740941839,-500.0,0.00016984,2]
[404024260,1769740941859,-250.0,0.00016984,2]
[404024261,1769740941891,-500.0,0.00016984,2]
[404024262,1769740941912,-500.0,0.00016984,2]
[404024263,1769740941932,-250.0,0.00016984,2]
[404024264,1769740941952,-500.0,0.00016984,2]
[404024265,1769740941973,-500.0,0.00016984,2]
[404024266,1769740941993,-500.0,0.00016984,2]
[404024267,1769740942013,-500.0,0.00016984,2]
[404024268,1769740942033,-250.0,0.00016984,2]
[404024269,1769740942054,-500.0,0.00016984,2]
[404024270,1769740942074,-500.0,0.00016984,2]
[404024271,1769740942095,-500.0,0.00016984,2]
[404024272,1769740942115,-250.0,0.00016984,2]
[404024273,1769740942137,-500.0,0.00016984,2]
[404024274,1769740942158,-500.0,0.00016984,2]
[404024275,1769740942179,-500.0,0.00016984,2]
[404024276,1769740942211,-250.0,0.00016984,2]
[404024277,1769740942232,-500.0,0.00016984,2]
[404024278,1769740942254,-582.77228948,0.00016984,2]
[404024279,1769740942274,-250.0,0.00016984,2]
[404024280,1769740942295,-500.0,0.00016984,2]
[404024281,1769740942315,-500.0,0.00016984,2]
[404024282,1769740942336,-210.38215981,0.00016984,2]
[404024283,1769740942362,-250.0,0.00016984,2]
[404024284,1769740942383,-500.0,0.00016984,2]
[404024285,1769740942407,-500.0,0.00016984,2]
[404024286,1769740942430,-250.0,0.00016984,2]
[404024287,1769740942452,-500.0,0.00016984,2]
[404024288,1769740942472,-500.0,0.00016984,2]
[404024289,1769740942492,-500.0,0.00016984,2]
[404024290,1769740942513,-500.0,0.00016984,2]
[404024291,1769740942535,-500.0,0.00016984,2]
[404024292,1769740942556,-250.0,0.00017,2]
[404024293,1769740942577,-981.61,0.00017001,2]
[404024294,1769740942597,-981.61,0.00017055,2]
[404024295,1769740942623,-2290.49,0.00017065,2]
[404024296,1769740942646,-981.61,0.00017109,2]
[404024297,1769740942668,-454.50781529,0.00017155,2]
[404024298,1769740942690,-981.61,0.00017162,2]
[404024299,1769740942710,-195.0,0.00017209,2]
[404024300,1769740942731,-600.0,0.00017209,2]
[404024301,1769740942754,-981.61,0.00017216,2]
[404024302,1769740942775,-388.0,0.0001723,2]
[404024303,1769740942796,-981.61,0.0001727,2]
[404024304,1769740942818,-981.61,0.00017324,2]
[404024305,1769740942839,-383.0,0.00017342,2]
[404024306,1769740942861,-388.0,0.00017356,2]
[404024307,1769740942882,-388.0,0.00017373,2]
[404024308,1769740942908,-981.61,0.00017377,2]
[404024309,1769740942929,-502.0,0.00017425,2]
[404024310,1769740942951,-981.61,0.00017431,2]
[404024311,1769740942979,-211.99979865,0.00017436,2]
[404024312,1769740943000,-159.0424929,0.00017436,2]
[404024313,1769740943021,-935.0,0.00017451,2]
[404024314,1769740943049,-388.0,0.00017465,2]
[404024315,1769740943071,-981.61,0.00017485,2]
[404024316,1769740943093,-388.0,0.00017488,2]
[404024317,1769740943114,-364.00000001,0.00017516,2]
[404024318,1769740943136,-981.61,0.00017539,2]
[404024319,1769740943158,-2121.639,0.00017577,2]
[404024320,1769740943181,-175.0,0.00017577,2]
[404024321,1769740943203,-981.61,0.00017592,2]
[404024322,1769740943225,-388.0,0.00017597,2]
[404024323,1769740943247,-388.0,0.00017633,2]
[404024324,1769740943271,-388.0,0.00017636,2]
[404024325,1769740943294,-981.61,0.00017646,2]
[404024326,1769740943316,-383.0,0.00017657,2]
[404024327,1769740943342,-500.0,0.00017666,2]
[404024328,1769740943369,-383.0,0.00017669,2]
[404024329,1769740943392,-388.0,0.00017672,2]
[404024330,1769740943416,-388.0,0.0001769,2]
[404024331,1769740943440,-388.0,0.00017696,2]
[404024332,1769740943467,-151.72557844,0.00017699,2]
[404024333,1769740943496,-150.0,0.00017699,2]
[404024334,1769740943519,-150.0,0.00017699,2]
[404024335,1769740943936,-500.0,0.00017699,2]
[404024336,1769740943962,-500.0,0.00017699,2]
[404024337,1769740943984,-280.72866755,0.00017699,2]
[404024338,1769740944007,-500.0,0.00017699,2]
[404024339,1769740944029,-500.0,0.00017699,2]
[404024340,1769740944050,-150.0,0.00017699,2]
[404024341,1769740944072,-981.61,0.000177,2]
[404024342,1769740944094,-388.0,0.00017744,2]
[404024343,1769740944115,-388.0,0.00017751,2]
[404024344,1769740944136,-981.61,0.00017753,2]
[404024345,1769740944159,-150.0,0.00017754,2]
[404024346,1769740944180,-150.0,0.00017754,2]
[404024347,1769740944203,-500.0,0.00017754,2]
[404024348,1769740944225,-500.0,0.00017754,2]
[404024349,1769740944246,-500.0,0.00017754,2]
[404024350,1769740944268,-500.0,0.00017754,2]
[404024351,1769740944289,-1000.0,0.00017757,2]
[404024352,1769740944310,-292.14143681,0.00017782,2]
[404024353,1769740944335,-383.0,0.00017792,2]
[404024354,1769740944359,-981.61,0.00017807,2]
[404024355,1769740944380,-166.03766199,0.00017809,2]
[404024356,1769740944402,-200.0,0.00017809,2]
[404024357,1769740944424,-500.0,0.00017809,2]
[404024358,1769740944446,-500.0,0.00017809,2]
[404024359,1769740944466,-500.0,0.00017809,2]
[404024360,1769740944487,-275.04776947,0.00017809,2]
[404024361,1769740944508,-165.38266235,0.00017816,2]
[404024362,1769740944530,-921.28185,0.0001783,2]
[404024363,1769740944552,-388.0,0.00017833,2]
[404024364,1769740944573,-200.0,0.00017856,2]
[404024365,1769740944595,-388.0,0.0001786,2]
[404024366,1769740944615,-981.61,0.00017861,2]
[404024367,1769740944636,-500.0,0.00017863,2]
[404024368,1769740944656,-516.08102084,0.00017863,2]
[404024369,1769740944678,-500.0,0.00017863,2]
[404024370,1769740944703,-921.28185,0.0001788,2]
[404024371,1769740944725,-388.0,0.00017885,2]
[404024372,1769740944747,-8142.10158708,0.00017889,2]
[404024373,1769740944769,-556.2559,0.00017889,2]
[404024374,1769740944791,-348.80443322,0.0001789,2]
[404024375,1769740944814,-920.50041791,0.0001789,2]
[404024376,1769740944836,-388.0,0.00017894,2]
[404024377,1769740944859,-388.0,0.00017896,2]
[404024378,1769740944881,-388.0,0.00017896,2]
[404024379,1769740944903,-1000.0,0.000179,2]
[404024380,1769740944924,-601.52,0.000179,2]
[404024381,1769740944946,-1140.6022,0.000179,2]
[404024382,1769740944968,-161.0,0.000179,3]
[404024383,1769740944990,-2019.0,0.000179,2]
[404024384,1769740945012,-770.98182238,0.000179,2]
[404024385,1769740945033,-264.45977324,0.000179,2]
[404024386,1769740945055,-10135.2522,0.000179,2]
[404024387,1769740945079,-152.49413014,0.000179,2]
[404024388,1769740945104,-390.0,0.00017901,2]
[404024389,1769740945126,-388.0,0.00017905,2]
[404024390,1769740945150,-500.0,0.00017918,2]
[404024391,1769740945173,-500.0,0.00017918,2]
[404024392,1769740945196,-921.28185,0.0001793,2]
[404024393,1769740945220,-1680.0,0.00017948,2]
[404024394,1769740945244,-383.0,0.00017957,2]
[404024395,1769740945266,-511.34250138,0.00017973,2]
[404024396,1769740945288,-503.36695703,0.00017973,2]
[404024397,1769740945311,-500.0,0.00017973,2]
[404024398,1769740945345,-500.0,0.00017973,2]
[404024399,1769740945368,-921.28185,0.0001798,2]
[404024400,1769740945391,-345.18749221,0.00017988,2]
[404024401,1769740945415,-259.57650141,0.00017988,2]
[404024402,1769740945440,-500.0,0.00017988,2]
[404024403,1769740945465,-500.0,0.00017988,2]
[404024404,1769740945489,-500.0,0.00017988,2]
[404024405,1769740945513,-500.0,0.00017988,2]
[404024406,1769740945539,-500.0,0.00017988,2]
[404024407,1769740945563,-474.46539133,0.00017988,2]
[404024408,1769740945590,-500.0,0.00017988,2]
[404024409,1769740945613,-500.0,0.00017988,2]
[404024410,1769740945635,-500.0,0.00017988,2]
[404024411,1769740945662,-500.0,0.00017988,2]
[404024412,1769740945688,-500.0,0.00017988,2]
[404024413,1769740945713,-500.0,0.00017988,2]
[404024414,1769740945740,-500.0,0.00017988,2]
[404024415,1769740945767,-500.0,0.00017988,2]
[404024416,1769740945792,-500.0,0.00017988,2]
[404024417,1769740945817,-500.0,0.00017988,2]
[404024418,1769740945841,-500.0,0.00017988,2]
[404024419,1769740945865,-346.69735315,0.00017988,2]
[404024420,1769740945889,-500.0,0.00017988,2]
[404024421,1769740945914,-500.0,0.00017988,2]
[404024422,1769740945941,-500.0,0.00017988,2]
[404024423,1769740945966,-500.0,0.00017988,2]
[404024424,1769740945990,-500.0,0.00017988,2]
[404024425,1769740946015,-500.0,0.00017988,2]
[404024426,1769740946041,-500.0,0.00017988,2]
[404024427,1769740946065,-500.0,0.00017988,2]
[404024428,1769740946090,-500.0,0.00017988,2]
[404024429,1769740946115,-500.0,0.00017988,2]
[404024430,1769740946140,-500.0,0.00017988,2]
[404024431,1769740946164,-500.0,0.00017988,2]
[404024432,1769740946193,-500.0,0.00017988,2]
[404024433,1769740946218,-500.0,0.00017988,2]
[404024434,1769740946243,-500.0,0.00017988,2]
[404024435,1769740946268,-500.0,0.00017988,2]
[404024436,1769740946292,-500.0,0.00017988,2]
[404024437,1769740946316,-500.0,0.00017988,2]
[404024438,1769740946341,-500.0,0.00017988,2]
[404024439,1769740946369,-500.0,0.00017988,2]
[404024440,1769740946396,-500.0,0.00017988,2]
[404024441,1769740946423,-350.0,0.00017988,2]
[404024442,1769740946445,-527.78,0.00017989,2]
[404024443,1769740946469,-500.0,0.00017989,2]
[404024444,1769740946492,-500.0,0.00017989,2]
[404024445,1769740946514,-500.0,0.00017989,2]
[404024446,1769740946537,-250.0,0.00017989,2]
[404024447,1769740946559,-500.0,0.00017989,2]
[404024448,1769740946581,-250.0,0.00017989,2]
[404024449,1769740946604,-500.0,0.00017989,2]
[404024450,1769740946625,-209.40437684,0.00017989,2]
[404024451,1769740946647,-250.0,0.00017989,2]
[404024452,1769740946669,-500.0,0.00017989,2]
[404024453,1769740946691,-500.0,0.00017989,2]
[404024454,1769740946713,-500.0,0.00017989,2]
[404024455,1769740946735,-500.0,0.00017989,2]
[404024456,1769740946758,-500.0,0.00017989,2]
[404024457,1769740946780,-500.0,0.00017989,2]
[404024458,1769740946802,-250.0,0.00017989,2]
[404024459,1769740946825,-250.0,0.00017989,2]
[404024460,1769740946847,-250.0,0.00017989,2]
[404024461,1769740946868,-250.0,0.00017989,2]
[404024462,1769740946889,-854.2589148,0.00017989,2]
[404024463,1769740946911,-500.0,0.00017989,2]
[404024464,1769740946932,-500.0,0.00017989,2]
[404024465,1769740946953,-500.0,0.00017989,2]
[404024466,1769740946974,-500.0,0.00017989,2]
[404024467,1769740946996,-500.0,0.00017989,2]
[404024468,1769740947017,-250.0,0.00017989,2]
[404024469,1769740947039,-209.40437684,0.00017989,2]
[404024470,1769740947060,-250.0,0.00017989,2]
[404024471,1769740947081,-250.0,0.00017989,2]
[404024472,1769740947101,-250.0,0.00017989,2]
[404024473,1769740947122,-250.0,0.00017989,2]
[404024474,1769740947144,-250.0,0.00017989,2]
[404024475,1769740947166,-250.0,0.00017989,2]
[404024476,1769740947187,-250.0,0.00017989,2]
[404024477,1769740947208,-250.0,0.00017989,2]
[404024478,1769740947229,-250.0,0.00017989,2]
[404024479,1769740947250,-250.0,0.00017989,2]
[404024480,1769740947275,-1154.0,0.00017993,2]
[404024481,1769740947296,-203.62711429,0.00017999,2]
[404024482,1769740947319,-1119.31843254,0.00017999,5]
[404024483,1769740947343,-500.0,0.00017999,2]
[404024484,1769740947365,-500.0,0.00017999,2]
[404024485,1769740947389,-167.01306335,0.00017999,2]
[404024486,1769740947412,-500.0,0.00017999,2]
[404024487,1769740947435,-500.0,0.00017999,2]
[404024488,1769740947457,-487.0,0.00017999,2]
[404024489,1769740947477,-500.0,0.00017999,2]
[404024490,1769740947731,-538.02217379,0.00017999,2]
[404024491,1769740947757,-158.87204512,0.00017999,2]
[404024492,1769740947781,-500.0,0.00017999,2]
[404024493,1769740947806,-445.44160602,0.00017999,2]
[404024494,1769740947827,-196.06065422,0.00017999,2]
[404024495,1769740947848,-495.36281268,0.00017999,2]
[404024496,1769740947870,-500.0,0.00017999,2]
[404024497,1769740947890,-500.0,0.00017999,2]
[404024498,1769740947911,-498.40835406,0.00017999,2]
[404024499,1769740947932,-195.5768485,0.00017999,2]
[404024500,1769740947954,-500.0,0.00017999,2]
[404024501,1769740947974,-3366.0,0.00018,2]
[404024502,1769740947996,-819489.77195898,0.00018,2]
[404024644,1769741385333,404.79294919,0.00010587,2]
[404024673,1769741432212,-151.0,0.00015973,2]
[404024675,1769741432222,-284.0,0.00015973,2]
[404024677,1769741432232,-550.0,0.0001634,2]
[404024679,1769741432242,-300.0,0.0001634,2]
[404024681,1769741432251,-1200.0,0.0001634,2]
[404024683,1769741432260,-250.0,0.0001634,2]
[404024685,1769741432270,-195.0,0.00016341,2]
[404024686,1769741432281,-616.0,0.00016341,2]
[404024687,1769741432290,-1334.0,0.00016341,2]
[404024688,1769741432299,-120.14978623,0.00016341,2]
[404024697,1769741435649,-1288.85021377,0.00016341,2]
[404024698,1769741435659,-3479.0,0.00016341,2]
[404024699,1769741435669,-173.866,0.00016341,2]
[404024700,1769741435678,-1270.0,0.00016341,2]
[404024701,1769741435687,-1204.0,0.00016341,2]
[404024702,1769741435696,-916.0,0.00016341,2]
[404024703,1769741435706,-5933.0,0.00016341,2]
[404024704,1769741435716,-206.74,0.00016587,2]
[404024705,1769741435726,-562.69,0.00016649,2]
[404024706,1769741435736,-1852.42,0.0001667,2]
[404024707,1769741435747,-322.6107,0.00016984,2]
[404024708,1769741435756,-550.33581997,0.00016984,2]
[404024709,1769741435767,-209.40437684,0.00016984,2]
[404024710,1769741435777,-150.0,0.00016987,2]
[404024711,1769741435787,-217.15233878,0.00017039,2]
[404024712,1769741435796,-174.3,0.00017094,2]
[404024713,1769741435806,-225.18697532,0.00017094,2]
[404024714,1769741435816,-233.51889341,0.00017149,2]
[404024715,1769741435826,-468.85,0.000172,2]
[404024716,1769741435835,-242.15909246,0.00017204,2]
[404024717,1769741435846,-166.66,0.00017218,2]
[404024718,1769741435855,-251.11897888,0.00017259,2]
[404024719,1769741435865,-260.4103811,0.00017314,2]
[404024720,1769741435874,-724.8,0.00017341,2]
[404024721,1769741435884,-270.0455652,0.00017369,2]
[404024722,1769741435894,-280.03725112,0.00017424,2]
[404024723,1769741435903,-935.0,0.00017451,2]
[404024724,1769741435912,-290.39862941,0.00017479,2]
[404024725,1769741435921,-562.69,0.00017481,2]
[404024726,1769741435931,-301.1433787,0.00017534,2]
[404024727,1769741435940,-159.0424929,0.00017573,2]
[404024728,1769741435949,-1000.0,0.00017757,2]
[404024729,1769741435960,-500.0,0.00017799,2]
[404024730,1769741435970,-1500.0,0.000178,2]
[404024731,1769741435979,-2000.0,0.0001782,2]
[404024732,1769741435988,-200.0,0.00017856,2]
[404024733,1769741435997,-420.0,0.00017859,2]
[404024734,1769741436007,-1000.0,0.000179,2]
[404024735,1769741436018,-153.81058903,0.000179,2]
[404024736,1769741436028,-1162.6092612,0.000179,2]
[404024737,1769741436039,-693.88364007,0.000179,2]
[404024738,1769741436048,-2000.0,0.0001792,2]
[404024739,1769741436058,-166.66,0.00017928,2]
[404024740,1769741436068,-1680.0,0.00017948,2]
[404024741,1769741436077,-254.0,0.0001796,2]
[404024742,1769741436088,-500.0,0.00017973,2]
[404024743,1769741436098,-500.0,0.00017973,2]
[404024744,1769741436107,-195.0,0.00017974,2]
[404024745,1769741436118,-250.0,0.00017974,2]
[404024746,1769741436129,-500.0,0.00017976,2]
[404024747,1769741436140,-500.0,0.00017976,2]
[404024748,1769741436149,-500.0,0.00017976,2]
[404024749,1769741436158,-500.0,0.00017976,2]
[404024750,1769741436168,-237.44600729,0.00017976,2]
[404024751,1769741436177,-500.0,0.00017976,2]
[404024752,1769741436186,-500.0,0.00017976,2]
[404024753,1769741436195,-500.0,0.00017976,2]
[404024754,1769741436204,-595.87,0.00017989,2]
[404024755,1769741436213,-500.0,0.00017989,2]
[404024756,1769741436223,-500.0,0.00017989,2]
[404024757,1769741436235,-500.0,0.00017989,2]
[404024758,1769741436245,-500.0,0.00017989,2]
[404024759,1769741436255,-500.0,0.00017989,2]
[404024760,1769741436265,-514.15812193,0.00017989,2]
[404024761,1769741436275,-500.0,0.00017989,2]
[404024762,1769741436284,-500.0,0.00017989,2]
[404024763,1769741436293,-500.0,0.00017989,2]
[404024764,1769741436303,-500.0,0.00017989,2]
[404024765,1769741436312,-500.0,0.00017989,2]
[404024766,1769741436322,-241.48917201,0.00017989,2]
[404024767,1769741436331,-500.0,0.00017989,2]
[404024768,1769741436340,-500.0,0.00017989,2]
[404024769,1769741436350,-500.0,0.00017989,2]
[404024770,1769741436359,-500.0,0.00017989,2]
[404024771,1769741436369,-500.0,0.00017989,2]
[404024772,1769741436379,-500.0,0.00017989,2]
[404024773,1769741436388,-500.0,0.00017989,2]
[404024774,1769741436398,-500.0,0.00017989,2]
[404024775,1769741436407,-500.0,0.00017989,2]
[404024776,1769741436416,-500.0,0.00017989,2]
[404024777,1769741436426,-500.0,0.00017989,2]
[404024778,1769741436435,-500.0,0.00017989,2]
[404024779,1769741436445,-500.0,0.00017989,2]